Cogmind - Beta 17 @@@ ROGUE MODE // 2026.07.01 @ 20:09:18 // Winter2019/RPGLIKE Player: Willow Result: Self-destructed Performance ------------- Evolutions (2) 1000 Regions Visited (10) 2000 Robots Destroyed (216) 1080 Value Destroyed (6108) 6108 Prototype IDs (23) 460 Alien Tech Used (0) 0 Bonus (885) 885 TOTAL SCORE: 11533 Bonus ------- High Alert Combat Kills 309 Follower Combat Kills 228 Registered with UFD 300 Met Optimus in HQ 500 Friendly Fire -452 Cogmind --------- Core Integrity 446/600 Matter 464/500 Energy 150/150 System Corruption 0% Temperature Cool (12) Movement Rolling (100) Ox2 Location -8/Scraptown Parts ------- > --- POWER (1) -------- Micro Fission Core > --- PROPULSION (3) --- Armored Treads Advanced Treads Wheel > --- UTILITY (8) ------ High-capacity Matter Pod Improved Signal Interpreter Seismic Detector Advanced Targeting Computer Target Analyzer Hardened Light Armor Plating Hacking Suite Makeshift Hacking Suite > --- WEAPON (4) ------- Minigun Minigun KE Penetrator CPS Tube > --- INVENTORY (5) ---- Protomatter-53 Protomatter-52 Protomatter-51 Minigun Rocket Launcher Peak State ------------ > --- POWER ------------ Micro Fission Core > --- PROPULSION ------- Armored Treads Advanced Treads Wheel > --- UTILITY ---------- High-capacity Matter Pod Improved Signal Interpreter Seismic Detector Advanced Targeting Computer Target Analyzer Hardened Light Armor Plating Hacking Suite Makeshift Hacking Suite > --- WEAPON ----------- Minigun Minigun KE Penetrator CPS Tube > --- INVENTORY -------- Protomatter Protomatter Protomatter Minigun Rocket Launcher [Rating: 48] Favorites ----------- Power Light Angular Momentum Engine Engine Light Angular Momentum Engine Power Core Micro Fission Core Propulsion Wheel Treads Light Treads Wheel Wheel Utility Seismic Detector Device Seismic Detector Storage High-capacity Matter Pod Processor Improved Signal Interpreter Hackware Hacking Suite Protection Hardened Light Armor Plating Weapon Minigun Energy Gun Medium Laser Energy Cannon Ion Cannon Ballistic Gun Minigun Launcher Rocket Launcher Special Weapon CPS Tube Build | -11 -10 -10 -9 -9 -9 -8 -8 -8 -8 -8 ------- Run | Yrd Mat Min Mat Min Exi Min Mat Sto Rec Scr Slots Evolved 12 | 3 3 1 2 . . 1 . 2 . . Power . | . . . . . . . . . . . Propulsion 2 | 1 1 . . . . . . . . . Utility 7 | 1 1 1 1 . . 1 . 2 . . Weapon 3 | 1 1 . 1 . . . . . . . Parts Attached 47 | 6 8 . 14 2 . 2 3 6 2 4 Power 5 | 1 . . 2 . . 1 . . . 1 Engine 4 | 1 . . 2 . . 1 . . . . Core 1 | . . . . . . . . . . 1 Reactor . | . . . . . . . . . . . Propulsion 7 | 2 2 . . 1 . . 1 1 . . Treads 6 | 1 2 . . 1 . . 1 1 . . Leg . | . . . . . . . . . . . Wheel 1 | 1 . . . . . . . . . . Hover . | . . . . . . . . . . . Flight . | . . . . . . . . . . . Utility 18 | 1 3 . 4 1 . 1 . 5 2 1 Device 5 | 1 . . . . . 1 . 3 . . Storage 2 | . 1 . . 1 . . . . . . Processor 5 | . 1 . 2 . . . . . 2 . Hackware 3 | . . . . . . . . 2 . 1 Protection 3 | . 1 . 2 . . . . . . . Artifact . | . . . . . . . . . . . Weapon 17 | 2 3 . 8 . . . 2 . . 2 Energy Gun 1 | 1 . . . . . . . . . . Energy Cannon 2 | . . . 1 . . . 1 . . . Ballistic Gun 12 | 1 3 . 7 . . . . . . 1 Ballistic Cannon . | . . . . . . . . . . . Launcher 1 | . . . . . . . 1 . . . Special Weapon 1 | . . . . . . . . . . 1 Impact Weapon . | . . . . . . . . . . . Slashing Weapon . | . . . . . . . . . . . Piercing Weapon . | . . . . . . . . . . . Special Melee Weapon . | . . . . . . . . . . . Unidentified Prototypes 2 | . . . 1 . . . . 1 . . Parts Lost . | . . . . . . . . . . . Power . | . . . . . . . . . . . Propulsion . | . . . . . . . . . . . Utility . | . . . . . . . . . . . Weapon . | . . . . . . . . . . . Highest Loss Streak . | . . . . . . . . . . . To Critical Strikes . | . . . . . . . . . . . Average Backups 1 | . 1 1 1 1 1 1 1 2 2 1 Power . | . . . . . . . . . . . Propulsion . | . . . . . . . . . . . Utility . | . . . . . . . . . . . Weapon 1 | . 1 1 1 1 1 1 1 2 2 1 Tool/Special . | . . . . . . . . . . . Unused Backups 2 | . 1 1 . . . . . . . . Power . | . . . . . . . . . . . Propulsion . | . . . . . . . . . . . Utility . | . . . . . . . . . . . Weapon 2 | . 1 1 . . . . . . . . Tool/Special . | . . . . . . . . . . . Average Slot Usage (%) 96 | . 96 99 93 100 100 96 99 98 90 100 Engine 7 | . 11 9 7 7 7 7 7 6 6 5 Treads 14 | . 14 18 15 15 15 14 13 13 12 12 Wheel 7 | . 11 9 7 7 7 7 7 6 6 6 Device 9 | . 11 9 7 7 7 10 14 13 6 6 Storage 6 | . . 7 7 7 7 7 7 6 6 6 Processor 11 | . 11 9 8 15 15 14 14 7 8 18 Hackware 3 | . . . . . . . . 7 12 12 Protection 6 | . 2 9 7 7 7 7 7 6 6 6 Ballistic Gun 26 | . 29 27 25 30 30 28 25 27 25 19 Peak Build Rating 48 | 6 10 11 27 28 28 35 37 40 43 48 Average Rating 28 | 4 8 10 22 27 28 31 35 38 38 43 On Entrance 23 | . 6 10 11 27 28 28 35 37 37 43 Avg Prop Armor Cover (%) 12 | 15 11 13 12 12 12 12 11 12 13 13 Naked Turns . | . . . . . . . . . . . Heaviest Build 37 | 10 15 17 31 30 30 32 35 37 31 32 Greatest Support 45 | 10 20 10 40 43 10 43 45 45 10 42 Greatest Overweight (x) 3 | . 1 1 3 2 2 3 3 3 3 3 Average Overweight (x) 2 | . . 1 1 1 2 2 2 2 3 2 Largest Inventory Capacity 5 | 1 2 2 3 3 3 3 3 5 5 5 Average Capacity 3 | 1 1 2 2 3 3 3 3 3 5 5 Most Carried 5 | 1 2 2 3 3 3 2 3 5 5 5 Average Carried 3 | . 1 1 2 3 2 2 2 3 5 4 Final Capacity 5 | 1 2 2 3 3 3 3 3 5 5 5 Final Carried 5 | 1 2 2 3 3 2 2 3 5 5 5 Class Distribution -------------------- 81% | Hacker-Gunner 12% | Gunner 5% | Mutant Dominant Class ---------------- Gunner | -10/Materials Gunner | -10/Mines Hacker-Gunner | -9/Materials Hacker-Gunner | -9/Mines Hacker-Gunner | -9/Exiles Hacker-Gunner | -8/Mines Hacker-Gunner | -8/Materials Hacker-Gunner | -8/Storage Hacker-Gunner | -8/Recycling Hacker-Gunner | -8/Scraptown Resources | -11 -10 -10 -9 -9 -9 -8 -8 -8 -8 -8 ----------- Run | Yrd Mat Min Mat Min Exi Min Mat Sto Rec Scr Matter Collected 5426 | 263 1051 209 937 376 . 480 557 1273 . 280 Remotely . | . . . . . . . . . . . Salvage Created 7135 | 15 1480 354 1566 391 . 558 959 1812 . . Parts 493 | 2 115 23 119 24 . 28 48 109 21 4 Haulers Intercepted 15 | . 2 . 6 . . . 2 5 . . Recyclers Shooed 5 | . 1 2 . . . . . 2 . . Parts Field Recycled . | . . . . . . . . . . . Retrieved Matter . | . . . . . . . . . . . Parts Self-Destructed . | . . . . . . . . . . . Prevented . | . . . . . . . . . . . Parts Restored . | . . . . . . . . . . . Kills | -11 -10 -10 -9 -9 -9 -8 -8 -8 -8 -8 ------- Run | Yrd Mat Min Mat Min Exi Min Mat Sto Rec Scr Combat Hostiles Destroyed 161 | . 30 13 33 16 . 11 18 35 4 1 Guns 146 | . 30 13 25 13 . 11 15 35 4 . Cannons 8 | . . . 8 . . . . . . . AOE 7 | . . . . 3 . . 3 . . 1 Classes Destroyed 15 | 1 8 . 3 . . 1 . . . 2 Worker 12 | . 7 . 2 . . 1 . 2 . . Builder 5 | . 2 . 1 . . 1 . 1 . . Tunneler 5 | 1 2 . . . . 2 . . . . Hauler 15 | . 2 . 6 . . . 2 5 . . Recycler 5 | . 2 . 1 . . 1 . 1 . . Mechanic 1 | . 1 . . . . . . . . . Operator 3 | . . . 2 . . . . 1 . . Watcher 9 | . 3 . 4 . . . 1 1 . . Swarmer 34 | . 3 8 1 12 . 4 3 3 . . Grunt 89 | . 27 5 21 3 . 6 8 19 . . Brawler 4 | . . . 1 1 . . 1 1 . . Duelist 1 | . . . . . . 1 . . . . Sentry 32 | . . . 10 . . . 6 12 4 . Federalist 1 | . . . . . . . . . . 1 Scientist 1 | . . . . . . . . . . 1 Best Kill Streak 11 | 1 11 4 7 3 . 7 6 8 2 1 Combat Bots Only 10 | . 10 4 6 3 . 4 6 6 2 1 Max Kills in Single Turn 3 | 1 2 3 3 3 . 2 3 2 1 1 Gunslinging 2 | . 1 2 . . . 1 . 1 . . Exploded 3 | . . . . 3 . . 3 . . 1 Melee . | . . . . . . . . . . . Uniques/NPCs Destroyed . | . . . . . . . . . . . Combat | -11 -10 -10 -9 -9 -9 -8 -8 -8 -8 -8 -------- Run | Yrd Mat Min Mat Min Exi Min Mat Sto Rec Scr Hostile Shots Fired 408 | . 98 47 53 29 . 27 45 92 4 13 Missed 122 | . 29 10 16 8 . 6 15 32 2 4 Hits 286 | . 69 37 37 21 . 21 30 60 2 9 Projectile 286 | . 69 37 37 21 . 21 30 60 2 9 Critical Strikes 7 | . 1 . . . . . 1 5 . . Damage Taken 3669 | . 818 356 528 272 . 277 364 815 27 212 Core 2761 | . 667 258 359 208 . 209 267 599 20 174 Absorbed by Shields . | . . . . . . . . . . . Redirected to Core 2282 | . 504 247 313 187 . 174 253 483 20 101 Ignored by Resistances 276 | . 63 22 37 28 . 21 29 60 2 14 Regen/Repaired (Parts) 91 | . . . . . . . . 91 . . Core Remaining (%) 97 | 100 . 93 . . . 100 . . . . Volleys Fired 389 | 1 115 24 71 16 . 29 36 79 5 13 Largest 4 | 2 3 3 4 4 . 4 4 4 4 3 Hottest 150 | 70 60 60 106 100 . 100 150 150 100 91 Shots Fired 1253 | 2 300 72 239 64 . 116 130 283 20 27 Gun 1199 | 2 300 72 209 64 . 116 124 272 20 20 Cannon 46 | . . . 30 . . . 5 11 . . Launcher 7 | . . . . . . . 1 . . 6 Special 1 | . . . . . . . . . . 1 Kinetic 1198 | 1 300 72 209 64 . 116 124 272 20 20 Thermal 47 | 1 . . 30 . . . 5 11 . . Explosive 7 | . . . . . . . 1 . . 6 Electromagnetic . | . . . . . . . . . . . Robot Hit Streak 36 | 2 14 7 16 7 . 13 17 34 25 36 Robot Miss Streak 4 | . 4 3 3 3 . 4 2 2 . 2 Penetration Max . | . . . . . . . . . . . Secondary Targets 35 | . 3 6 1 5 . 1 2 17 . . Max Gunslinging Chain 2 | . 1 2 1 1 . 1 1 2 . . Shots Hit Robots 789 | 2 192 44 131 38 . 67 85 198 13 19 Core Hits 340 | 1 81 22 60 20 . 26 36 80 7 7 Critical Kills 1 | . . . . . . . 1 . . . Critical Parts Destroyed 9 | . . . 1 1 . . 2 3 . 2 Critical Strikes 11 | 1 . . 1 1 . . 3 3 . 2 Burn 1 | 1 . . . . . . . . . . Destroy 10 | . . . 1 1 . . 3 3 . 2 Melee Attacks . | . . . . . . . . . . . Impact . | . . . . . . . . . . . Slashing . | . . . . . . . . . . . Piercing . | . . . . . . . . . . . Sneak Attacks . | . . . . . . . . . . . Combat Hostiles . | . . . . . . . . . . . Follow-up Attacks . | . . . . . . . . . . . Damage Inflicted 14339 | 27 2501 597 2544 900 . 1265 1867 3757 266 615 Guns 12877 | 27 2492 587 1979 693 . 1239 1551 3725 247 337 Cannons 569 | . . . 542 . . . 27 . . . Explosions 738 | . . . . 183 . . 277 . . 278 Melee . | . . . . . . . . . . . Ramming 155 | . 9 10 23 24 . 26 12 32 19 . Kinetic 12864 | 14 2492 587 1979 693 . 1239 1551 3725 247 337 Thermal 765 | 13 . . 542 183 . . 27 . . . Explosive 555 | . . . . . . . 277 . . 278 Electromagnetic . | . . . . . . . . . . . Impact . | . . . . . . . . . . . Slashing . | . . . . . . . . . . . Piercing . | . . . . . . . . . . . Highest Corruption . | . . . . . . . . . . . Average Corruption . | . . . . . . . . . . . Corruption Purged . | . . . . . . . . . . . Corruption Blocked . | . . . . . . . . . . . Overload Shots . | . . . . . . . . . . . Overflow Damage 1 | . . . . . . . . . . 1 Projectiles . | . . . . . . . . . . . Explosions 1 | . . . . . . . . . . 1 Melee . | . . . . . . . . . . . Knockbacks . | . . . . . . . . . . . Impact . | . . . . . . . . . . . Kinetic . | . . . . . . . . . . . Secondary . | . . . . . . . . . . . Self-Inflicted Damage 137 | . . . . 113 . . . . . 24 Shots 4 | . . . . 3 . . . . . 1 Rammed 29 | . 2 4 3 4 . 4 1 8 3 . Targets Rammed 30 | . 2 4 3 4 . 4 1 9 3 . Kicked . | . . . . . . . . . . . Crushed 1 | . . . . . . . . 1 . . Highest Temperature 127 | 9 65 127 36 60 . 42 35 48 28 11 Average Temperature 22 | 6 21 72 11 14 . 15 21 19 13 10 Received Heat Transfer 1671 | . 423 147 198 9 . 135 189 486 . 84 Siege Activations . | . . . . . . . . . . . Martial Activations . | . . . . . . . . . . . Shielding Activations . | . . . . . . . . . . . Robots Disrupted . | . . . . . . . . . . . Combat Hostiles . | . . . . . . . . . . . Robots Corrupted . | . . . . . . . . . . . Combat Hostiles . | . . . . . . . . . . . Parts Fried . | . . . . . . . . . . . Impact Corruptions . | . . . . . . . . . . . Robots Melted . | . . . . . . . . . . . Combat Hostiles . | . . . . . . . . . . . Parts Melted 3 | . . . 2 1 . . . . . . Heat Transferred 1212 | 111 . . 814 250 . . 37 . . . Parts Sabotaged . | . . . . . . . . . . . Parts Stolen . | . . . . . . . . . . . Parts Stripped . | . . . . . . . . . . . Power Chain Reactions . | . . . . . . . . . . . Alert | -11 -10 -10 -9 -9 -9 -8 -8 -8 -8 -8 ------- Run | Yrd Mat Min Mat Min Exi Min Mat Sto Rec Scr Maximum Alert Level 2 | . 2 1 2 2 . 1 1 2 1 . Low Security (%) 31 | 100 50 66 12 . . 94 45 . 21 . Level 1 48 | . 48 33 48 82 . 5 54 39 78 . Level 2 20 | . 1 . 38 16 . . . 59 . . Level 3 . | . . . . . . . . . . . Level 4 . | . . . . . . . . . . . Level 5 . | . . . . . . . . . . . High Security . | . . . . . . . . . . . Max Security . | . . . . . . . . . . . Peak Influence 642 | 5 400 309 458 448 . 222 399 642 331 . Initial 189 | . . 145 111 169 . . 32 165 189 . Average 270 | 1 190 196 327 330 . 110 201 422 239 . Influence Increases 5865 | 5 945 402 1295 529 . 413 781 1158 337 . Destroy 0b10 Robot/C 3400 | . 600 300 720 320 . 260 420 700 80 . Destroy 0b10 Robot/NC 280 | 5 95 . 80 . . 25 20 55 . . Destroy Leader 850 | . 140 50 240 60 . 40 128 192 . . Allied During Kill 174 | . . 52 43 . . 47 32 . . . Successful Hack 147 | . 17 . 28 . . 11 18 26 47 . Select Force Hacks 510 | . 60 . 120 . . . 60 60 210 . Disable Machine 270 | . . . 30 75 . 30 15 120 . . Destroy Structure 69 | . 3 . 4 44 . . 13 5 . . Lose Combat Pursuer 165 | . 30 . 30 30 . . 75 . . . Influence Decreases 5865 | 5 570 492 1146 615 348 329 472 1064 672 152 Entered New Map 1747 | . . 230 174 265 348 . 52 228 298 152 Time Decay 3258 | 5 420 262 612 350 . 329 380 526 374 . Lost Ally 260 | . . . 60 . . . 40 160 . . Purge Threat 600 | . 150 . 300 . . . . 150 . . Squads Dispatched 27 | . 9 . 9 . . . 5 4 . . Investigation 21 | . 9 . 7 . . . 2 3 . . Extermination . | . . . . . . . . . . . Reinforcement 6 | . . . 2 . . . 3 1 . . Assault . | . . . . . . . . . . . Garrison . | . . . . . . . . . . . Intercept . | . . . . . . . . . . . Searches Triggered . | . . . . . . . . . . . Construction Impeded 2 | . . . 1 . . . 1 . . . Haulers Reinforced . | . . . . . . . . . . . Active Scanning Responses . | . . . . . . . . . . . Cargo Convoy Interrupts . | . . . . . . . . . . . Stealth | -11 -10 -10 -9 -9 -9 -8 -8 -8 -8 -8 --------- Run | Yrd Mat Min Mat Min Exi Min Mat Sto Rec Scr Distress Signals 11 | . . . 4 . . . 3 4 . . Communications Jammed . | . . . . . . . . . . . Distress Signals . | . . . . . . . . . . . Times Spotted 227 | . 45 15 49 17 . 13 31 43 3 11 Peak Tracking Total 7 | . 4 3 6 3 . 4 7 7 2 6 Tactical Retreats 6 | . 1 . 2 1 . . 2 . . . Traps | -11 -10 -10 -9 -9 -9 -8 -8 -8 -8 -8 ------- Run | Yrd Mat Min Mat Min Exi Min Mat Sto Rec Scr Traps Triggered 13 | . 6 . 5 . . . 1 1 . . Indirectly . | . . . . . . . . . . . Trap Hack Attempts . | . . . . . . . . . . . Triggered . | . . . . . . . . . . . Disarmed . | . . . . . . . . . . . Reprogrammed . | . . . . . . . . . . . Reused . | . . . . . . . . . . . Traps Extracted . | . . . . . . . . . . . Installed . | . . . . . . . . . . . Triggered . | . . . . . . . . . . . Machines | -11 -10 -10 -9 -9 -9 -8 -8 -8 -8 -8 ---------- Run | Yrd Mat Min Mat Min Exi Min Mat Sto Rec Scr Machines Disabled 21 | . 3 . 2 5 . 2 1 8 . . Max in Single Turn 5 | . 1 . 1 5 . 1 1 1 . . Garrison Access 1 | . . . . . . . . 1 . . Machines Repaired . | . . . . . . . . . . . Machines Dismantled . | . . . . . . . . . . . Machines Sabotaged . | . . . . . . . . . . . Overloaded Fab Kills . | . . . . . . . . . . . Hacking | -11 -10 -10 -9 -9 -9 -8 -8 -8 -8 -8 --------- Run | Yrd Mat Min Mat Min Exi Min Mat Sto Rec Scr Machines Accessed 66 | . 11 . 17 . . 2 8 14 13 1 Terminals 42 | . 8 . 11 . . 2 6 9 6 . Fabricators . | . . . . . . . . . . . Repair Stations 5 | . 1 . 2 . . . . 2 . . Recycling Units 13 | . 2 . 2 . . . . 2 7 . Scanalyzers 4 | . . . 2 . . . 2 . . . Garrison Access 1 | . . . . . . . . 1 . . Total Hacks 222 | . 36 . 61 . . 16 32 44 30 3 Successful 146 | . 24 . 42 . . 6 22 27 22 3 Failed 72 | . 12 . 18 . . 9 9 17 7 . Catastrophic 4 | . 1 . 1 . . 1 . 1 . . Database Lockouts 4 | . . . 1 . . 1 1 . 1 . Manual 154 | . 30 . 44 . . 18 20 25 17 . Terminals 191 | . 31 . 55 . . 16 28 38 23 . Fabricators . | . . . . . . . . . . . Repair Stations 6 | . 1 . 2 . . . . 3 . . Recycling Units 15 | . 4 . 2 . . . . 2 7 . Scanalyzers 6 | . . . 2 . . . 4 . . . Garrison Access 1 | . . . . . . . . 1 . . Terminal Hacks 71 | . 9 . 22 . . 6 10 14 7 3 Record 3 | . . . . . . . . . . 3 Part Schematic 1 | . . . . . . . . 1 . . Robot Analysis 11 | . 2 . 4 . . 3 . 1 1 . Prototype ID Bank 17 | . 3 . 3 . . 2 3 3 3 . Open Door 2 | . . . . . . . . 2 . . Branch Access Points 2 | . . . 1 . . . 1 . . . Machine Index 1 | . . . . . . . . 1 . . Terminal Index 4 | . 1 . 1 . . . 1 . 1 . Repair Station Index 1 | . . . 1 . . . . . . . Recycling Unit Index 3 | . . . 2 . . . . . 1 . Scanalyzer Index 2 | . . . . . . . 1 1 . . Alert Level 15 | . 2 . 7 . . 1 2 3 . . Unreport Threat 4 | . 1 . 2 . . . . 1 . . Hauler Manifests 3 | . . . 1 . . . 1 1 . . Registered Components 1 | . . . . . . . 1 . . . Registered Prototypes 1 | . . . . . . . . . 1 . Fabricator Hacks . | . . . . . . . . . . . Repair Station Hacks 2 | . . . . . . . . 2 . . Scan Component 1 | . . . . . . . . 1 . . Repair 1 | . . . . . . . . 1 . . Recycling Unit Hacks . | . . . . . . . . . . . Scanalyzer 1 | . . . . . . . 1 . . . Retrieve Study 1 | . . . . . . . 1 . . . Garrison Access Hacks 1 | . . . . . . . . 1 . . Seal Access 1 | . . . . . . . . 1 . . Unauthorized Hacks 71 | . 15 . 20 . . . 11 10 15 . Terminals 50 | . 12 . 14 . . . 9 7 8 . Botnet 13 | . 3 . 3 . . . 3 2 2 . Operators 3 | . 1 . 1 . . . . . 1 . Skim 31 | . 5 . 10 . . . 6 5 5 . Sabotage 3 | . 3 . . . . . . . . . Fabricators . | . . . . . . . . . . . Repair Stations 4 | . 1 . 2 . . . . 1 . . Patch 4 | . 1 . 2 . . . . 1 . . Recycling Units 13 | . 2 . 2 . . . . 2 7 . Tunnel 13 | . 2 . 2 . . . . 2 7 . Scanalyzers 4 | . . . 2 . . . 2 . . . Extract 4 | . . . 2 . . . 2 . . . Garrison Access . | . . . . . . . . . . . Data Cores Recovered 1 | . . . . . . . . 1 . . Used . | . . . . . . . . . . . Hacking Detections 32 | . 8 . 9 . . 2 3 7 3 . Full Trace Events 3 | . . . 1 . . 1 1 . . . Feedback Events . | . . . . . . . . . . . Feedback Blocked . | . . . . . . . . . . . Robot Schematics Acquired . | . . . . . . . . . . . Robots Built . | . . . . . . . . . . . Authchips . | . . . . . . . . . . . Time . | . . . . . . . . . . . Total Robot Build Rating . | . . . . . . . . . . . Part Schematics Acquired 9 | . . . 5 . . . 3 1 . . Parts Built . | . . . . . . . . . . . Authchips . | . . . . . . . . . . . Time . | . . . . . . . . . . . Total Part Build Rating . | . . . . . . . . . . . Part Studies Acquired 1 | . . . . . . . 1 . . . Parts Repaired 1 | . . . . . . . . 1 . . Time 32 | . . . . . . . . 32 . . Parts Recycled . | . . . . . . . . . . . Recycled Matter . | . . . . . . . . . . . Retrieved Matter . | . . . . . . . . . . . Retrieved Components . | . . . . . . . . . . . Parts Scanalyzed . | . . . . . . . . . . . Part Schematics Acquired . | . . . . . . . . . . . Parts Damaged . | . . . . . . . . . . . Bothacking | -11 -10 -10 -9 -9 -9 -8 -8 -8 -8 -8 ------------ Run | Yrd Mat Min Mat Min Exi Min Mat Sto Rec Scr Used RIF Installer . | . . . . . . . . . . . Robots Hacked . | . . . . . . . . . . . Non-combat . | . . . . . . . . . . . Combat . | . . . . . . . . . . . Robot Hacks Applied . | . . . . . . . . . . . Relay Couplers Released . | . . . . . . . . . . . Fabnet Peak Effective % . | . . . . . . . . . . . Robots Rewired . | . . . . . . . . . . . Allies Hacked . | . . . . . . . . . . . Hacks Repelled . | . . . . . . . . . . . Allies | -11 -10 -10 -9 -9 -9 -8 -8 -8 -8 -8 -------- Run | Yrd Mat Min Mat Min Exi Min Mat Sto Rec Scr Total Allies 6 | . . 3 . 3 . . . . . . Largest Group 3 | . . 3 3 3 3 3 3 . . . Highest-Rated Group 73 | . . 73 73 40 40 40 40 . . . Highest-Rated Ally 31 | . . 31 31 16 16 16 16 . . . Total Orders 6 | . . . . . . . . 6 . . ROAM 2 | . . . . . . . . 2 . . FOLLOW 2 | . . . . . . . . 2 . . EXPLORE 2 | . . . . . . . . 2 . . Ally Attacks 75 | . . 10 19 . . 7 39 . . . Total Damage 885 | . . 170 256 . . 82 377 . . . Kills 11 | . . 2 3 . . 2 4 . . . Allies Corrupted . | . . . . . . . . . . . Allies Melted 2 | . . . . . . . . . . 2 Intel | -11 -10 -10 -9 -9 -9 -8 -8 -8 -8 -8 ------- Run | Yrd Mat Min Mat Min Exi Min Mat Sto Rec Scr Active Infowar (turns) 10261 | 7 1275 578 2013 783 155 844 893 1470 860 1383 Seismic 10261 | 7 1275 578 2013 783 155 844 893 1470 860 1383 Robot Analysis Total 11 | . 2 . 4 . . 3 . 1 1 . Derelict Logs Recovered 3 | . . 1 . 2 . . . . . . Drone Launches 37 | . . . . . . . . 37 . . Drone Recoveries 21 | . . . . . . . . 21 . . Exploration | -11 -10 -10 -9 -9 -9 -8 -8 -8 -8 -8 ------------- Run | Yrd Mat Min Mat Min Exi Min Mat Sto Rec Scr Turns Passed 10315 | 61 1275 578 2013 783 155 844 893 1470 860 1383 Spaces Moved 6613 | 61 681 477 1216 640 131 622 552 719 623 891 Core 1 | 1 . . . . . . . . . . Treads 156 | . 18 . 30 1 . 3 70 32 . 2 Legs . | . . . . . . . . . . . Wheels 6456 | 60 663 477 1186 639 131 619 482 687 623 889 Hover . | . . . . . . . . . . . Flight . | . . . . . . . . . . . Fastest Speed 50 | 50 80 95 95 110 110 110 100 115 115 100 Average Speed 110 | 79 88 95 110 110 110 118 129 116 115 111 Slowest Speed 240 | 80 160 95 240 160 110 160 240 157 115 157 Overloaded Moves . | . . . . . . . . . . . Propulsion Burnouts . | . . . . . . . . . . . Robots Hopped . | . . . . . . . . . . . Potential Cave-ins . | . . . . . . . . . . . Cave-ins Triggered . | . . . . . . . . . . . Exploration Rate (%) 76 | 3 94 93 93 98 50 86 66 98 94 63 Regions Visited 10 Branch Regions 7 Pre-discovered Areas 24 | . 4 1 4 . . . 1 4 10 . Known Exits Taken 9 | . 1 1 1 1 1 1 1 1 1 . Unknown Exits Taken 1 | 1 . . . . . . . . . . Scrap Searched 7 | . . 2 . 1 . 1 . . . 3 Spaces Dug 3 | . . . 1 . . . 2 . . . Terrain Destroyed 99 | . . . 2 45 . . 7 . . 45 Melee . | . . . . . . . . . . . Projectile 6 | . . . 2 . . . 4 . . . AOE 93 | . . . . 45 . . 3 . . 45 Terrain Rammed . | . . . . . . . . . . . Walls Destroyed . | . . . . . . . . . . . Machines Disabled . | . . . . . . . . . . . Actions | -11 -10 -10 -9 -9 -9 -8 -8 -8 -8 -8 --------- Run | Yrd Mat Min Mat Min Exi Min Mat Sto Rec Scr Total 8873 | 68 1106 546 1755 689 142 677 666 1211 757 1256 Wait 1534 | . 251 27 394 22 5 5 43 330 119 338 Move 6603 | 60 680 476 1215 639 130 621 551 718 622 891 Hop . | . . . . . . . . . . . Pick Up 11 | 1 1 2 3 . . . . 2 1 1 Fast Attach 36 | 6 6 . 10 . . 1 4 6 2 1 Attach 1 | . . 1 . . . . . . . . Detach 2 | . 1 . . . . . 1 . . . Swap 34 | . 2 . 7 2 . 1 4 13 . 5 Drop 34 | . 4 1 16 1 1 . 2 6 1 2 Fire 389 | 1 115 24 71 16 . 29 36 79 5 13 Melee . | . . . . . . . . . . . Ram . | . . . . . . . . . . . Kick . | . . . . . . . . . . . Crush 30 | . 2 4 3 4 . 4 1 9 3 . Escape Stasis . | . . . . . . . . . . . Rewire 5 | . . . . . . . . 4 . 1 Trap . | . . . . . . . . . . . Miscellaneous 194 | . 44 11 36 5 6 16 24 44 4 4 Route ------- -11/Scrapyard -10/Materials (discovered 5 exits: *Mat x3 / *Min / Sub) -10/Mines (discovered 3 exits: *Mat x2 / Sub) -9/Materials (discovered 4 exits: *Mat x3 / *Min) -9/Mines (discovered 4 exits: *Mat x2 / *Exi / *Zio) -9/Exiles (discovered 2 exits: *Min x2) -8/Mines (discovered 2 exits: *Mat x2) -8/Materials (discovered 3 exits: *Fac x2 / *Sto) -8/Storage (discovered 2 exits: *Fac / *Rec) -8/Recycling (discovered 2 exits: *Fac / *Scr) -8/Scraptown (discovered 2 exits: *Fac x2) History --------- Turn | Location | Event 1 | -11/Scrapyard | Upgraded with Propulsion slot (x1) 1 | -11/Scrapyard | Upgraded with Utility slot (x1) 1 | -11/Scrapyard | Upgraded with Weapon slot (x1) 6 | -11/Scrapyard | Discovered new exit (range 15) 62 | -11/Scrapyard | Entered Materials 119 | -10/Materials | Discovered new exit (range 4) 120 | -10/Materials | Identified exit to Materials 164 | -10/Materials | Discovered new exit (range 8) 297 | -10/Materials | Identified exit to Mines 316 | -10/Materials | Build established: Mutant 350 | -10/Materials | Discovered exit to Materials (range 14) 437 | -10/Materials | Identified exit to Subcaves 577 | -10/Materials | Reached level 2 592 | -10/Materials | Upgraded with Utility slot (x1) 592 | -10/Materials | Upgraded with Weapon slot (x1) 598 | -10/Materials | Learned 2 Mines zone layouts 655 | -10/Materials | Learned location of 1 exit from Recycling 727 | -10/Materials | Learned location of 2 exits from Materials 820 | -10/Materials | Learned location of Mines (-9) 840 | -10/Materials | Reached level 3 888 | -10/Materials | Destroyed 10 combat bots 898 | -10/Materials | Build established: Gunner 927 | -10/Materials | Upgraded with Propulsion slot (x1) 1337 | -10/Materials | Entered Mines 1341 | -10/Mines | Discovered exit to Materials (range 11) 1354 | -10/Mines | Received a Rocket Launcher from a helpful Derelict 1375 | -10/Mines | Reached level 4 1393 | -10/Mines | Upgraded with Utility slot (x1) 1412 | -10/Mines | Escorted by a lone wolf Derelict 1432 | -10/Mines | Learned location of Storage (-8) 1614 | -10/Mines | Discovered exit to Materials (range 5) 1832 | -10/Mines | Reached level 5 1915 | -10/Mines | Entered Materials 1915 | -9/Materials | Accompanied by 3 allies 1916 | -9/Materials | Identified exit to Mines 1917 | -9/Materials | Identified exit to Materials 1917 | -9/Materials | Reached level 6 1920 | -9/Materials | Led the pair of lost Derelicts to an unsafe place 1933 | -9/Materials | Upgraded with Utility slot (x1) 2184 | -9/Materials | Reached level 7 2223 | -9/Materials | Build established: Hacker-Gunner 2458 | -9/Materials | Reached level 8 2645 | -9/Materials | Learned Storage security intel 2684 | -9/Materials | Upgraded with Weapon slot (x1) 2712 | -9/Materials | Learned Storage trap positions 2858 | -9/Materials | Learned location of Zion (-7) 2909 | -9/Materials | Learned 4 Recycling zone layouts 2972 | -9/Materials | Learned Storage emergency access door positions 2982 | -9/Materials | Central database locked down 3025 | -9/Materials | Discovered exit to Materials (range 8) 3603 | -9/Materials | Learned location of 1 exit from Storage 3751 | -9/Materials | Learned 4 Recycling zone layouts 3751 | -9/Materials | Reached level 9 3782 | -9/Materials | Loaded intel: 6 trap records 3804 | -9/Materials | Learned location of 1 exit from Storage 3818 | -9/Materials | Learned Storage trap positions 3928 | -9/Materials | Entered Mines 4020 | -9/Mines | Met a Derelict bent on vengeance 4122 | -9/Mines | Learned Materials security intel 4170 | -9/Mines | Learned Materials emergency access door positions 4357 | -9/Mines | Deemed a non-threat by the Exiles lab entrance 4357 | -9/Mines | Discovered new exit (range 5) 4360 | -9/Mines | Identified exit to Exiles 4432 | -9/Mines | A Derelict revealed a hidden shortcut to a safe place 4434 | -9/Mines | Identified exit to Zion 4575 | -9/Mines | Reached level 10 4622 | -9/Mines | Assisted by bots powering up and referring to "LRC-V3" 4711 | -9/Mines | Entered Exiles 4711 | -9/Exiles | Accompanied by 3 allies 4712 | -9/Exiles | Identified exit to Mines 4739 | -9/Exiles | Met 8R-AWN 4757 | -9/Exiles | Met EX-HEX 4806 | -9/Exiles | Met EX-DEC 4866 | -9/Exiles | Entered Mines 4866 | -8/Mines | Accompanied by 3 allies 4870 | -8/Mines | Upgraded with Utility slot (x1) 5157 | -8/Mines | Reached level 11 5177 | -8/Mines | Central database locked down 5710 | -8/Mines | Entered Materials 5710 | -8/Materials | Accompanied by 3 allies 5711 | -8/Materials | Identified exit to Storage 5712 | -8/Materials | Reached level 12 5928 | -8/Materials | Discovered new exit (range 16) 5951 | -8/Materials | Central database locked down 6437 | -8/Materials | Reached level 13 6497 | -8/Materials | Learned Factory garrison access intel 6511 | -8/Materials | Discovered new exit (range 16) 6561 | -8/Materials | Learned Factory fabricator intel 6562 | -8/Materials | Learned Storage security intel 6595 | -8/Materials | Learned location of 1 exit from Extension 6603 | -8/Materials | Entered Storage 6604 | -8/Storage | Identified exit to Recycling 6604 | -8/Storage | Identified exit to Factory 6605 | -8/Storage | Loaded intel: 18 trap records 6659 | -8/Storage | Watched by a mysterious "MATRIX" hacker 7189 | -8/Storage | Learned location of 2 exits from Lower Caves 7209 | -8/Storage | Repaired Hrd. Light Armor Plating 7237 | -8/Storage | Reached level 14 7259 | -8/Storage | Learned location of Recycling (-8) 7321 | -8/Storage | Learned location of 1 exit from Lower Caves 7372 | -8/Storage | Learned 2 Lower Caves zone layouts 7412 | -8/Storage | Learned 4 Lower Caves zone layouts 7465 | -8/Storage | Learned Factory terminal intel 7539 | -8/Storage | Learned 12 Factory zone layouts 7589 | -8/Storage | Learned Storage emergency access door positions 7769 | -8/Storage | Lost 10 allies 7995 | -8/Storage | Upgraded with Utility slot (x2) 8049 | -8/Storage | Allied Derelicts emerged from ambush trap array 8060 | -8/Storage | Used back door to open Recycling access 8073 | -8/Storage | Entered Recycling 8074 | -8/Recycling | Identified exit to Scraptown 8232 | -8/Recycling | Discovered new exit (range 5) 8235 | -8/Recycling | Identified exit to Factory 8458 | -8/Recycling | Learned Factory security intel 8525 | -8/Recycling | Scanned before Scraplab entrance 8541 | -8/Recycling | Entered Scraplab 8705 | -8/Recycling | Learned location of 1 exit from Storage 8740 | -8/Recycling | Learned 4 Factory zone layouts 8767 | -8/Recycling | Learned Factory recycling unit intel 8913 | -8/Recycling | Learned Storage trap positions 8933 | -8/Recycling | Entered Scraptown 9060 | -8/Scraptown | Visited Fellowship of the Rings 9090 | -8/Scraptown | Visited The Evicted 9106 | -8/Scraptown | Visited Spacefarers 9126 | -8/Scraptown | Visited IN-MT5's Study 9132 | -8/Scraptown | Visited Artisan Demo Area 9209 | -8/Scraptown | Visited Shadow of the Wyrm 9226 | -8/Scraptown | Visited UFD Registry 9226 | -8/Scraptown | Registered with UFD as "Fluxshell" 9252 | -8/Scraptown | Visited LU-1G1's Boring Crew 9268 | -8/Scraptown | Visited Junk Cannon Lab 9301 | -8/Scraptown | Visited Supply Room 9444 | -8/Scraptown | Visited Derelict Rescue Squad 9477 | -8/Scraptown | Visited Supply Room 9512 | -8/Scraptown | Visited Junk Repository 9541 | -8/Scraptown | Visited Chapter 10 9578 | -8/Scraptown | Visited Scrapoid Research Area 9639 | -8/Scraptown | Visited Scrap Suit Storage 9799 | -8/Scraptown | Met Optimus 9799 | -8/Scraptown | Accepted into 0bPrime 10199 | -8/Scraptown | Civil war broke out across Scraptown 10201 | -8/Scraptown | Attached CPS modules to B5-X4Q(c) 10297 | -8/Scraptown | Attacked by Scraptown defenders 10316 | -8/Scraptown | Self-destructed Last Messages --------------- 10280_ Acquired 12 matter. 10281_ CL-5EE(x) suffers critical hit (Destroy). 10282_ Slug penetrates CL-5EE(x). 10284_ Protomatter-20 decays. 10284_ Slug penetrates CL-5EE(x). 10284_ TU-WV7(g) destroyed. 10284_ CL-5EE(x) destroyed. 10290_ Slug penetrates Earth. 10293_ Slug penetrates OS-HT5(j). 10293_ OS-HT5(j) suffers critical hit (Destroy). 10293_ Destroyed Ovr. Titanium Leg. 10294_ The unstable cave ceiling collapses. 10296_ OS-HT5(j) switches sides. 10296_ Slug penetrates OS-HT5(j). 10298_ OS-HT5(j): "Fluxshell is with the other side!" 10298_ The unstable cave ceiling collapses. 10299_ Penetrated by Slug. 10306_ OS-HT5(j) heat damages Ovr. Titanium Leg. 10309_ OS-HT5(j) suffers critical hit (Burn). 10309_ OS-HT5(j) overheating. Map ----- +----------------------------------------------------+ | ???????????????????????????????????#""!##"" ##!!"# | | ????????????????????????????????" | | ??????????????????????????????# | | ????????????????????????????????################## | | ?????????????????????????????????????????????????? | | ?????????????????###########?????????????????????? | | ?????????????????#""""" #???############??????? | | ?????????????????# " " " #???#""""""""""#??????? | | ?????????????????# """#????## " #??????? | | ?#####?#?????????# """#????# ""#??????? | | ?# # # #????????# " """#????# ""#??????? | | ## " " ##???????#""" " #????# """"######## | | #" "#???????#""" #????# " ""#]=#![ # | | # #???????#""" ""#????# """"#]/#= ]# | | # #???????# " "#????# ""# # # | | ? #???????# "#???### "# | | ??? #???????# #???# # | | ????? #???????####### ###???##### ########### # | | ####### ####???????##### ###########%########### # | | #???????#"""" """""""""""=""""""""""" " | | #???????#" =%%! | | #???????#" [!![ | | #???????#" * | | #???????#" j= [ | | ## #????####" j!g[ | | ## #????"""" @"""""""""""""""""""""""" | | ## #????"""" ! """""""""""""""""""""""" | | ## #????"""" !""###### ############## | | ## #????"""" ""# ##??????? | | ## #????"""" ""# X"#??????? | | ## ###??"""" ""# "" "" ##??????? | | ## ""#"#"""" ""# "" "" X"#??????# | | ## """"#"""" ""# " " ######### | | ## ""#######" "" "" | | ## ###?????#" "" " | | ## #########" ""# " " ######### | | ## ! ! "# "" "" ""#??????# | | ## [%= =% ""# "" "" ##??????? | | ## * "# X"#??????? | | ## "# ##??????? | | ## !! "###### ############## | | =%= " " """"""""""""""""""" | | =%[ """""""" " """"""" | | ! | | %= | | ! *!% =[% | | #""""#"[!! [!!*[*%[* | | #????# = = !=%!%!=%%! | | #????# ! %[ """"""""""" | | ######## ####????#"#"""#%## # # ### ########### | +----------------------------------------------------+ Best States ------------- Heat Dissipation 74 Energy Generation 18 Energy Capacity 280 Matter Stores 500 Matter Capacity 500 Sight Range 16 Terrain Scan Density 10 Armor Coverage 225 Resistance: KI 5 Resistance: TH 5 Evasion (%) 44 Targeting Accuracy 8 Target Analysis 5 Recoil Reduction 2 Salvage Targeting 1 Offensive Hacking 31 Defensive Hacking 10 Item Schematics ----------------- Sml. Battery | -9/Materials | Extracted Autogun | -9/Materials | Extracted Flight Unit | -9/Materials | Extracted Hcp. Matter Pod | -9/Materials | Extracted Weight Redist. System | -9/Materials | Extracted EM Pulse Gun | -8/Materials | Extracted Minigun | -8/Materials | Extracted Actuator Array | -8/Materials | Extracted Imp. Medium Treads | -8/Storage | Hacked Robot Schematics ------------------ None Fabricated ------------ Nothing Repaired ---------- Hrd. Light Armor Plating | 49% | -8/Storage Studied --------- Wheel | -8/Materials | Hacked Alien Tech Used ----------------- None Achievements -------------- None Challenges ------------ None RPGLIKE | -11 -10 -10 -9 -9 -9 -8 -8 -8 -8 -8 --------- Run | Yrd Mat Min Mat Min Exi Min Mat Sto Rec Scr Levels Raised 13 | . 2 2 4 1 . 1 2 1 . . XP Earned 23848 | 3000 3950 2302 6077 1296 67 1944 2491 1899 612 210 XP Spent 20600 | 2900 2900 1550 5000 . . 1700 . 6550 . . Upgrades 32 | 9 4 6 8 . . 1 . 4 . . Propulsion Slot 2 | 1 1 . . . . . . . . . Utility Slot 7 | 1 1 1 1 . . 1 . 2 . . Weapon Slot 3 | 1 1 . 1 . . . . . . . Heat Dissipation 5 | . . 5 . . . . . . . . Inventory Capacity 5 | 1 1 . 1 . . . . 2 . . Ranged Accuracy 2 | 1 . . 1 . . . . . . . Hack Attack % 2 | 1 . . 1 . . . . . . . Hack Defense % 2 | 1 . . 1 . . . . . . . KI Resistance % 1 | . . . 1 . . . . . . . TH Resistance % 1 | 1 . . . . . . . . . . KI Damage % 1 | 1 . . . . . . . . . . EX Damage % 1 | . . . 1 . . . . . . . Protomatter Created 2552 | . 474 75 718 61 . 140 209 658 197 20 Integrity Restored 3572 | . 855 224 633 81 138 300 464 764 27 86 Core 2607 | . 667 216 401 54 138 225 267 599 20 20 Parts 965 | . 188 8 232 27 . 75 197 165 7 66 Protomatter Decayed 3009 | . 83 . 416 . . 36 70 258 185 1961 Game ------ Seed WeightShockTrap Manual? 0 Play Time 01:33:11 Cumulative 373.1 hours Start 2026.07.01 @ 16:45:41 End 2026.07.01 @ 20:09:18 Sessions 3 Manual Loads 0 Difficulty Rogue Special Mode Winter2019/RPGLIKE Game No. 150 Rogue 102 Adventurer 44 Explorer 4 Win Type - Total 11 Types 4/3/0/1/1/1/0/1/0/0 Lore% 80 Gallery% 69 Achievement% 57 Wizard Run 0 Options --------- Layout 0 ASCII 0 Keyboard 0 Movement Arrows Keybinds 0 Fullscreen 2 Font 18/SmallcapsGlow Map View 76x50 Zoom Use 0% Tactical HUD 1 Map Filters NONE Filters NONE Steam 1 RUN: 0e8ebd4d-5e1d-4ec5-9662-5fa3912a69a5